fUST/lending_fUST_20251220
["ID","MTS","AMOUNT","RATE_DAILY","PERIOD"]
[399273099,1766225474667,-1858.51,0.000249,2]
[399273100,1766225474676,-618308.728847,0.000249,2]
[399273101,1766225474685,-193.78343,0.000249,7]
[399273102,1766225474694,-193.78343,0.000249,7]
[399273103,1766225474703,-193.78343,0.000249,7]
[399273104,1766225474712,-193.78343,0.000249,7]
[399273105,1766225474722,-623.28265559,0.00024983,22]
[399273106,1766225474731,-10388.43105614,0.00025,2]
[399273107,1766225474740,-9851.64859624,0.00025,2]
[399273108,1766225474750,-160.34,0.00025,2]
[399273109,1766225474759,-1083.93861713,0.00025,2]
[399273110,1766225474768,-2670.84278574,0.00025,2]
[399273111,1766225474777,-270.9375792,0.00025,2]
[399273112,1766225474787,-150.0,0.00025,2]
[399273113,1766225474796,-500.0,0.00025,2]
[399273114,1766225474806,-255671.7403683,0.00025,2]
[399273115,1766225474815,-10970.0,0.00025,2]
[399273116,1766225474824,-82141.10314569,0.00025,2]
[399273117,1766225474833,-326.927746,0.00025,7]
[399273118,1766225474843,-326.927746,0.00025,7]
[399273119,1766225474852,-326.927746,0.00025,7]
[399273120,1766225474861,-326.927746,0.00025,7]
[399273121,1766225474871,-2000.0,0.00025,7]
[399273122,1766225474880,-193.78343,0.00025,7]
[399273123,1766225474889,-193.78343,0.00025,7]
[399273124,1766225474898,-193.78343,0.00025,7]
[399273125,1766225474907,-193.78343,0.00025,7]
[399273126,1766225474917,-1000.0,0.00025014,10]
[399273127,1766225474926,-244.0,0.00025014,10]
[399273128,1766225474935,-217.0,0.00025151,15]
[399273129,1766225474945,-250.0,0.00025205,2]
[399273130,1766225474954,-623.28265559,0.00025444,23]
[399273131,1766225474963,-2000.0,0.000255,7]
[399273132,1766225474972,-1000.0,0.000255,2]
[399273133,1766225474981,-204.78111675,0.000255,2]
[399273134,1766225474990,-480.32641385,0.00025699,2]
[399273135,1766225474999,-267.16301158,0.000257,2]
[399273136,1766225475009,-258.17,0.000257,14]
[399273137,1766225475019,-350.0,0.00025753,2]
[399273138,1766225475027,-499.99999901,0.0002578,2]
[399273139,1766225475036,-623.28265559,0.00025905,24]
[399273140,1766225475046,-529.06897433,0.00026,2]
[399273141,1766225475055,-399.26,0.00026,7]
[399273142,1766225475065,-2000.0,0.00026,7]
[399273143,1766225475074,-218.0,0.00026247,19]
[399273144,1766225475085,-450.0,0.00026301,2]
[399273145,1766225475097,-623.28265559,0.00026366,25]
[399273146,1766225475108,-108342.05,0.000264,2]
[399273147,1766225475117,-2000.0,0.000265,7]
[399273148,1766225475126,-849.026784,0.00026676,2]
[399273149,1766225475135,-623.28265559,0.00026828,26]
[399273150,1766225475144,-550.0,0.00026849,2]
[399273151,1766225475157,-2000.0,0.00027,7]
[399273152,1766225475166,-201.53301,0.00027,120]
[399273153,1766225475175,-936.13001,0.00027,120]
[399273154,1766225475185,-623.28265559,0.00027289,27]
[399273155,1766225475194,-241.0,0.00027342,24]
[399273156,1766225475203,-1370.5050098,0.00027366,2]
[399273157,1766225475212,-400.0,0.0002739,2]
[399273158,1766225475221,-150.0,0.0002739,2]
[399273159,1766225475231,-223.63514193,0.00027397,2]
[399273160,1766225475240,-650.0,0.00027397,5]
[399273161,1766225475250,-500.0,0.00027397,120]
[399273162,1766225475259,-2000.0,0.000275,7]
[399273163,1766225475269,-45887.34827045,0.000275,2]
[399273164,1766225475278,-326.927746,0.000275,7]
[399273165,1766225475287,-326.927746,0.000275,7]
[399273166,1766225475296,-326.927746,0.000275,7]
[399273167,1766225475305,-326.927746,0.000275,7]
[399273168,1766225475315,-193.78343,0.000275,7]
[399273169,1766225475326,-193.78343,0.000275,7]
[399273170,1766225475335,-193.78343,0.000275,7]
[399273171,1766225475344,-193.78343,0.000275,7]
[399273172,1766225475353,-844.0,0.00027589,10]
[399273173,1766225475363,-521.89312274,0.00027699,2]
[399273174,1766225475371,-623.28265559,0.0002775,28]
[399273175,1766225475380,-3415.57568666,0.000279,2]
[399273176,1766225475390,-750.0,0.00027945,5]
[399273177,1766225475399,-19000.0495352,0.00028,2]
[399273178,1766225475410,-15302.03265574,0.00028,2]
[399273179,1766225475419,-2002.62756171,0.00028,2]
[399273180,1766225475430,-53724.82110638,0.00028,2]
[399273181,1766225475439,-500.40273758,0.00028,2]
[399273182,1766225475448,-2000.0,0.00028,7]
[399273183,1766225475457,-108342.05,0.000282,2]
[399273184,1766225475467,-623.28265559,0.00028211,29]
[399273185,1766225475477,-5000.0,0.00028433,2]
[399273186,1766225475486,-236.0,0.00028438,29]
[399273187,1766225475494,-850.0,0.00028493,5]
[399273188,1766225475503,-1858.51,0.000285,2]
[399273189,1766225475512,-2000.0,0.000285,7]
[399273190,1766225475521,-623.28265559,0.00028672,30]
[399273191,1766225475530,-26839.50979387,0.0002876,2]
[399273192,1766225475539,-889.10713186,0.00029,2]
[399273193,1766225475548,-2000.0,0.00029,7]
[399273194,1766225475556,-200.0,0.00029,120]
[399273195,1766225475565,-204.346558,0.00029041,5]
[399273196,1766225475574,-2000.0,0.000295,7]
[399273197,1766225475583,-207.0,0.00029534,35]
[399273198,1766225475593,-563.45983164,0.00029699,2]
[399273199,1766225475602,-350.0,0.0003,2]
[399273200,1766225475611,-64235.75570006,0.0003,2]
[399273201,1766225475620,-269.32051891,0.0003,2]
[399273202,1766225475629,-501.17478337,0.0003,2]
[399273203,1766225475638,-326.927746,0.0003,7]
[399273204,1766225475647,-326.927746,0.0003,7]
[399273205,1766225475655,-326.927746,0.0003,7]
[399273206,1766225475664,-326.927746,0.0003,7]
[399273207,1766225475674,-193.78343,0.0003,7]
[399273208,1766225475683,-193.78343,0.0003,7]
[399273209,1766225475693,-193.78343,0.0003,7]
[399273210,1766225475702,-193.78343,0.0003,7]
[399273211,1766225475712,-500.0,0.00030137,120]
[399273212,1766225475721,-605.43794777,0.00030137,120]
[399273213,1766225475731,-182.0,0.0003063,41]
[399273214,1766225475741,-701.41128533,0.00030666,2]
[399273215,1766225475751,-399.26,0.000309,7]
[399273216,1766225475761,-181.35743845,0.00030978,6]
[399273217,1766225475771,-305.61464989,0.0003099,2]
[399273218,1766225475781,-19306.23278521,0.0003112,2]
[399273219,1766225475790,-605.02654053,0.00031699,2]
[399273220,1766225475800,-231.0,0.00031726,48]
[399273221,1766225475810,-22193.0734812,0.000319,2]
[399273222,1766225475820,-258.17,0.000319,14]
[399273223,1766225475829,-200.46503417,0.00032,2]
[399273224,1766225475838,-500.0,0.0003216,2]
[399273225,1766225475847,-936.13001,0.000323,120]
[399273226,1766225475857,-1917.71317888,0.00032849,2]
[399273227,1766225475866,-1370.5050098,0.00032873,2]
[399273228,1766225475876,-500.0,0.00032877,120]
[399273229,1766225475885,-503.20038263,0.00032877,8]
[399273230,1766225475894,-157.823733,0.00032877,31]
[399273231,1766225475904,-989.610014,0.00032877,31]
[399273232,1766225475913,-989.610014,0.00032877,31]
[399273233,1766225475922,-989.610014,0.00032877,31]
[399273234,1766225475931,-989.610014,0.00032877,31]
[399273235,1766225475940,-989.610014,0.00032877,31]
[399273236,1766225475949,-989.610014,0.00032877,31]
[399273237,1766225475959,-989.610014,0.00032877,31]
[399273238,1766225475967,-989.610014,0.00032877,31]
[399273239,1766225475978,-152.060491,0.00032877,31]
[399273240,1766225475987,-168.146572,0.00032877,31]
[399273241,1766225475996,-168.146572,0.00032877,31]
[399273242,1766225476005,-168.146572,0.00032877,31]
[399273243,1766225476015,-151.0,0.00032877,31]
[399273244,1766225476027,-168.146572,0.00032877,31]
[399273245,1766225476037,-151.0,0.00032877,31]
[399273246,1766225476046,-168.146572,0.00032877,31]
[399273247,1766225476057,-151.0,0.00032877,31]
[399273248,1766225476067,-168.146572,0.00032877,31]
[399273249,1766225476077,-151.0,0.00032877,31]
[399273250,1766225476087,-168.146572,0.00032877,31]
[399273251,1766225476096,-151.0,0.00032877,31]
[399273252,1766225476107,-168.146572,0.00032877,31]
[399273253,1766225476117,-151.0,0.00032877,31]
[399273254,1766225476126,-168.146572,0.00032877,31]
[399273255,1766225476136,-168.146572,0.00032877,31]
[399273256,1766225476145,-168.146572,0.00032877,31]
[399273257,1766225476158,-168.146572,0.00032877,31]
[399273258,1766225476167,-151.0,0.00032877,31]
[399273259,1766225476176,-163.524087,0.00032877,31]
[399273260,1766225476186,-151.0,0.00032877,31]
[399273261,1766225476196,-151.0,0.00032877,31]
[399273262,1766225476205,-151.0,0.00032877,31]
[399273263,1766225476214,-286.294295,0.00032877,31]
[399273264,1766225476223,-169.221562,0.00032877,31]
[399273265,1766225476232,-169.221562,0.00032877,31]
[399273266,1766225476241,-169.221562,0.00032877,31]
[399273267,1766225476251,-169.221562,0.00032877,31]
[399273268,1766225476260,-169.221562,0.00032877,31]
[399273269,1766225476269,-169.221562,0.00032877,31]
[399273270,1766225476279,-169.221562,0.00032877,31]
[399273271,1766225476288,-169.221562,0.00032877,31]
[399273272,1766225476296,-169.221562,0.00032877,31]
[399273273,1766225476305,-169.221562,0.00032877,31]
[399273274,1766225476314,-169.221562,0.00032877,31]
[399273275,1766225476323,-169.221562,0.00032877,31]
[399273276,1766225476332,-151.0,0.00032877,31]
[399273277,1766225476341,-156.93529,0.00032877,31]
[399273278,1766225476350,-172.966838,0.00032877,31]
[399273279,1766225476359,-172.966838,0.00032877,31]
[399273280,1766225476368,-172.966838,0.00032877,31]
[399273281,1766225476377,-172.966838,0.00032877,31]
[399273282,1766225476517,-172.966838,0.00032877,31]
[399273283,1766225476526,-172.966838,0.00032877,31]
[399273284,1766225476535,-172.966838,0.00032877,31]
[399273285,1766225476544,-172.966838,0.00032877,31]
[399273286,1766225476554,-172.966838,0.00032877,31]
[399273287,1766225476563,-172.966838,0.00032877,31]
[399273288,1766225476572,-172.966838,0.00032877,31]
[399273289,1766225476581,-172.966838,0.00032877,31]
[399273290,1766225476590,-151.0,0.00032877,31]
[399273291,1766225476599,-151.0,0.00032877,31]
[399273292,1766225476608,-301.350414,0.00032877,31]
[399273293,1766225476617,-739.711789,0.00032877,31]
[399273294,1766225476627,-156.93687,0.00032877,31]
[399273295,1766225476636,-739.711789,0.00032877,31]
[399273296,1766225476645,-156.93687,0.00032877,31]
[399273297,1766225476655,-739.711789,0.00032877,31]
[399273298,1766225476664,-156.93687,0.00032877,31]
[399273299,1766225476674,-739.711789,0.00032877,31]
[399273300,1766225476684,-156.93687,0.00032877,31]
[399273301,1766225476693,-739.711789,0.00032877,31]
[399273302,1766225476703,-156.93687,0.00032877,31]
[399273303,1766225476712,-739.711789,0.00032877,31]
[399273304,1766225476721,-156.93687,0.00032877,31]
[399273305,1766225476731,-739.711789,0.00032877,31]
[399273306,1766225476741,-156.93687,0.00032877,31]
[399273307,1766225476751,-739.711789,0.00032877,31]
[399273308,1766225476760,-156.93687,0.00032877,31]
[399273309,1766225476769,-739.711789,0.00032877,31]
[399273310,1766225476779,-156.93687,0.00032877,31]
[399273311,1766225476788,-151.0,0.00032877,31]
[399273312,1766225476797,-151.0,0.00032877,31]
[399273313,1766225476806,-151.0,0.00032877,31]
[399273314,1766225476815,-156.93687,0.00032877,31]
[399273315,1766225476825,-739.711789,0.00032877,31]
[399273316,1766225476834,-156.93687,0.00032877,31]
[399273317,1766225476843,-739.711789,0.00032877,31]
[399273318,1766225476853,-156.93687,0.00032877,31]
[399273319,1766225476861,-151.0,0.00032877,31]
[399273320,1766225476871,-739.711789,0.00032877,31]
[399273321,1766225476880,-151.0,0.00032877,31]
[399273322,1766225476889,-287.37259231,0.00032877,31]
[399273323,1766225476898,-374.491947,0.00032877,31]
[399273324,1766225476907,-151.0,0.00032877,31]
[399273325,1766225476917,-374.491947,0.00032877,31]
[399273326,1766225476926,-158.174484,0.00032877,31]
[399273327,1766225476935,-151.303417,0.00032877,31]
[399273328,1766225476944,-374.491947,0.00032877,31]
[399273329,1766225476953,-374.491947,0.00032877,31]
[399273330,1766225476963,-374.491947,0.00032877,31]
[399273331,1766225476971,-374.491947,0.00032877,31]
[399273332,1766225476981,-374.491947,0.00032877,31]
[399273333,1766225476990,-374.491947,0.00032877,31]
[399273334,1766225476998,-374.491947,0.00032877,31]
[399273335,1766225477009,-374.491947,0.00032877,31]
[399273336,1766225477018,-374.491947,0.00032877,31]
[399273337,1766225477027,-374.491947,0.00032877,31]
[399273338,1766225477036,-151.0,0.00032877,31]
[399273339,1766225477045,-151.0,0.00032877,31]
[399273340,1766225477054,-151.0,0.00032877,31]
[399273341,1766225477064,-151.0,0.00032877,31]
[399273342,1766225477074,-151.0,0.00032877,31]
[399273343,1766225477083,-224.514712,0.00032877,31]
[399273344,1766225477092,-1064.359062,0.00032877,31]
[399273345,1766225477101,-151.0,0.00032877,31]
[399273346,1766225477111,-1064.359062,0.00032877,31]
[399273347,1766225477120,-155.85967,0.00032877,31]
[399273348,1766225477129,-1064.359062,0.00032877,31]
[399273349,1766225477138,-1064.359062,0.00032877,31]
[399273350,1766225477147,-1064.359062,0.00032877,31]
[399273351,1766225477159,-1064.359062,0.00032877,31]
[399273352,1766225477168,-1064.359062,0.00032877,31]
[399273353,1766225477177,-1064.359062,0.00032877,31]
[399273354,1766225477187,-1064.359062,0.00032877,31]
[399273355,1766225477196,-1064.359062,0.00032877,31]
[399273356,1766225477206,-1064.359062,0.00032877,31]
[399273357,1766225477215,-1064.359062,0.00032877,31]
[399273358,1766225477224,-151.0,0.00032877,31]
[399273359,1766225477233,-151.0,0.00032877,31]
[399273360,1766225477242,-151.0,0.00032877,31]
[399273361,1766225477251,-238.59528,0.00032877,31]
[399273362,1766225477260,-151.0,0.00032877,31]
[399273363,1766225477269,-178.862978,0.00032877,31]
[399273364,1766225477279,-196.354694,0.00032877,31]
[399273365,1766225477288,-151.0,0.00032877,31]
[399273366,1766225477298,-175.519926,0.00032877,31]
[399273367,1766225477307,-151.0,0.00032877,2]
[399273368,1766225477316,-178.483156,0.00032877,2]
[399273369,1766225477325,-151.0,0.00032877,31]
[399273370,1766225477334,-151.0,0.00032877,31]
[399273371,1766225477343,-151.0,0.00032877,31]
[399273372,1766225477355,-151.0,0.00032877,31]
[399273373,1766225477364,-297.054467,0.00032877,31]
[399273374,1766225477373,-1130.594065,0.00032877,31]
[399273375,1766225477382,-1130.594065,0.00032877,31]
[399273376,1766225477392,-1130.594065,0.00032877,31]
[399273377,1766225477401,-262.674651,0.00032877,31]
[399273378,1766225477411,-262.674651,0.00032877,31]
[399273379,1766225477420,-1130.594065,0.00032877,31]
[399273380,1766225477428,-262.674651,0.00032877,31]
[399273381,1766225477441,-1130.594065,0.00032877,31]
[399273382,1766225477461,-1130.594065,0.00032877,31]
[399273383,1766225477479,-262.674651,0.00032877,31]
[399273384,1766225477498,-262.674651,0.00032877,31]
[399273385,1766225477517,-1130.594065,0.00032877,31]
[399273386,1766225477536,-262.674651,0.00032877,31]
[399273387,1766225477553,-1130.594065,0.00032877,31]
[399273388,1766225477571,-1130.594065,0.00032877,31]
[399273389,1766225477585,-262.674651,0.00032877,31]
[399273390,1766225477606,-1130.594065,0.00032877,31]
[399273391,1766225477625,-262.674651,0.00032877,31]
[399273392,1766225477643,-1130.594065,0.00032877,31]
[399273393,1766225477656,-262.674651,0.00032877,31]
[399273394,1766225477675,-1130.594065,0.00032877,31]
[399273395,1766225477689,-262.674651,0.00032877,31]
[399273396,1766225477706,-262.674651,0.00032877,31]
[399273397,1766225477721,-262.674651,0.00032877,31]
[399273398,1766225477736,-743.244538,0.00032877,31]
[399273399,1766225477751,-743.244538,0.00032877,31]
[399273400,1766225477766,-743.244538,0.00032877,31]
[399273401,1766225477780,-743.244538,0.00032877,31]
[399273402,1766225477795,-151.0,0.00032877,31]
[399273403,1766225477812,-743.244538,0.00032877,31]
[399273404,1766225477827,-151.0,0.00032877,31]
[399273405,1766225477841,-743.244538,0.00032877,31]
[399273406,1766225477856,-295.838977,0.00032877,31]
[399273407,1766225477871,-1269.78,0.00032877,10]
[399273408,1766225477886,-743.244538,0.00032877,31]
[399273409,1766225477901,-743.244538,0.00032877,31]
[399273410,1766225477916,-743.244538,0.00032877,31]
[399273411,1766225477930,-743.244538,0.00032877,31]
[399273412,1766225477946,-743.244538,0.00032877,31]
[399273413,1766225477960,-156.610737,0.00032877,31]
[399273414,1766225477975,-743.244538,0.00032877,31]
[399273415,1766225477991,-197.564712,0.00032877,31]
[399273416,1766225478005,-197.564712,0.00032877,31]
[399273417,1766225478019,-197.564712,0.00032877,31]
[399273418,1766225478033,-197.564712,0.00032877,31]
[399273419,1766225478048,-197.564712,0.00032877,31]
[399273420,1766225478061,-197.564712,0.00032877,31]
[399273421,1766225478075,-197.564712,0.00032877,31]
[399273422,1766225478090,-197.564712,0.00032877,31]
[399273423,1766225478104,-197.564712,0.00032877,31]
[399273424,1766225478118,-197.564712,0.00032877,31]
[399273425,1766225478132,-197.564712,0.00032877,31]
[399273426,1766225478147,-195.765928,0.00032877,31]
[399273427,1766225478162,-197.564712,0.00032877,31]
[399273428,1766225478177,-197.564712,0.00032877,31]
[399273429,1766225478192,-197.564712,0.00032877,31]
[399273430,1766225478205,-197.564712,0.00032877,31]
[399273431,1766225478220,-197.564712,0.00032877,31]
[399273432,1766225478237,-151.0,0.00032877,31]
[399273433,1766225478250,-151.0,0.00032877,31]
[399273434,1766225478265,-151.0,0.00032877,31]
[399273435,1766225478280,-158.115787,0.00032877,31]
[399273436,1766225478297,-151.0,0.00032877,31]
[399273437,1766225478311,-151.0,0.00032877,31]
[399273438,1766225478326,-151.0,0.00032877,31]
[399273439,1766225478340,-151.0,0.00032877,31]
[399273440,1766225478354,-151.0,0.00032877,31]
[399273441,1766225478369,-267.875671,0.00032877,31]
[399273442,1766225478382,-71449.52878823,0.00033,2]
[399273443,1766225478397,-615.5,0.0003315,30]
[399273444,1766225478411,-849.026784,0.00033165,2]
[399273445,1766225478426,-261.02605772,0.000332,117]
[399273446,1766225478441,-261.02605768,0.000332,117]
[399273447,1766225478455,-189.0,0.0003337,60]
[399273448,1766225478469,-646.59324942,0.00033699,120]
[399273449,1766225478484,-615.5,0.00033972,31]
[399273450,1766225478497,-1031.92139126,0.00034,2]
[399273451,1766225478512,-261.02605768,0.0003425,120]
[399273452,1766225478526,-152.462,0.00034503,39]
[399273453,1766225478540,-200.20920651,0.0003463,30]
[399273454,1766225478555,-615.5,0.00034794,32]
[399273455,1766225478569,-200.20920651,0.00034795,30]
[399273456,1766225478584,-200.20920651,0.00034959,30]
[399273457,1766225478599,-155.0,0.00035014,74]
[399273458,1766225478613,-200.20920651,0.00035123,30]
[399273459,1766225478627,-200.20920651,0.00035288,30]
[399273460,1766225478643,-200.20920651,0.00035452,30]
[399273461,1766225478657,-200.0,0.0003546,41]
[399273462,1766225478672,-615.5,0.00035616,33]
[399273463,1766225478687,-500.0,0.00035616,120]
[399273464,1766225478702,-500.0,0.00035616,7]
[399273465,1766225478716,-500.0,0.00035616,7]
[399273466,1766225478730,-500.0,0.00035616,7]
[399273467,1766225478745,-263.21625398,0.00035616,7]
[399273468,1766225478759,-500.0,0.00035616,7]
[399273469,1766225478772,-619.94982313,0.00035616,7]
[399273470,1766225478787,-500.0,0.00035616,7]
[399273471,1766225478802,-500.0,0.00035616,7]
[399273472,1766225478816,-500.0,0.00035616,7]
[399273473,1766225478830,-500.0,0.00035616,7]
[399273474,1766225478845,-500.0,0.00035616,7]
[399273475,1766225478859,-500.0,0.00035616,7]
[399273476,1766225478873,-500.0,0.00035616,7]
[399273477,1766225478887,-500.0,0.00035616,7]
[399273478,1766225479077,-500.0,0.00035616,7]
[399273479,1766225479091,-500.0,0.00035616,7]
[399273480,1766225479103,-500.0,0.00035616,7]
[399273481,1766225479113,-500.0,0.00035616,7]
[399273482,1766225479123,-500.0,0.00035616,7]
[399273483,1766225479133,-500.0,0.00035616,7]
[399273484,1766225479143,-500.0,0.00035616,7]
[399273485,1766225479154,-500.0,0.00035616,7]
[399273486,1766225479163,-500.0,0.00035616,7]
[399273487,1766225479173,-500.0,0.00035616,7]
[399273488,1766225479182,-500.0,0.00035616,7]
[399273489,1766225479191,-500.0,0.00035616,7]
[399273490,1766225479200,-500.0,0.00035616,7]
[399273491,1766225479210,-500.0,0.00035616,7]
[399273492,1766225479220,-500.0,0.00035616,7]
[399273493,1766225479230,-500.0,0.00035616,7]
[399273494,1766225479239,-481.75428372,0.00035616,7]
[399273495,1766225479248,-500.0,0.00035616,7]
[399273496,1766225479258,-500.0,0.00035616,7]
[399273497,1766225479269,-500.0,0.00035616,7]
[399273498,1766225479280,-500.0,0.00035616,7]
[399273499,1766225479290,-500.0,0.00035616,7]
[399273500,1766225479299,-500.0,0.00035616,7]
[399273501,1766225479309,-500.0,0.00035616,7]
[399273502,1766225479319,-500.0,0.00035616,7]
[399273503,1766225479328,-500.0,0.00035616,7]
[399273504,1766225479338,-500.0,0.00035616,7]
[399273505,1766225479348,-500.0,0.00035616,7]
[399273506,1766225479358,-200.20920651,0.00035616,30]
[399273507,1766225479367,-163.20036606,0.0003562,30]
[399273508,1766225479376,-163.20036606,0.0003562,30]
[399273509,1766225479386,-163.20036606,0.0003562,30]
[399273510,1766225479395,-163.2,0.0003562,30]
[399273511,1766225479404,-152.32034166,0.0003562,30]
[399273512,1766225479413,-152.32034166,0.0003562,30]
[399273513,1766225479422,-152.32034166,0.0003562,30]
[399273514,1766225479432,-152.32034166,0.0003562,30]
[399273515,1766225479442,-152.80645204,0.0003562,30]
[399273516,1766225479451,-152.80645204,0.0003562,30]
[399273517,1766225479460,-152.80645204,0.0003562,30]
[399273518,1766225479469,-152.80645204,0.0003562,30]
[399273519,1766225479480,-152.80645204,0.0003562,30]
[399273520,1766225479489,-152.80645204,0.0003562,30]
[399273521,1766225479497,-152.80645204,0.0003562,30]
[399273522,1766225479506,-152.80645204,0.0003562,30]
[399273523,1766225479515,-152.80645204,0.0003562,30]
[399273524,1766225479524,-152.80645204,0.0003562,30]
[399273525,1766225479533,-152.80645204,0.0003562,30]
[399273526,1766225479542,-152.80645204,0.0003562,30]
[399273527,1766225479551,-152.80645204,0.0003562,30]
[399273528,1766225479561,-152.80645204,0.0003562,30]
[399273529,1766225479570,-152.80645204,0.0003562,30]
[399273530,1766225479580,-152.80645204,0.0003562,30]
[399273531,1766225479590,-152.8,0.0003562,30]
[399273532,1766225479599,-303.06612987,0.0003562,30]
[399273533,1766225479609,-303.06612987,0.0003562,30]
[399273534,1766225479620,-303.06612987,0.0003562,30]
[399273535,1766225479631,-303.06612987,0.0003562,30]
[399273536,1766225479642,-303.06612987,0.0003562,30]
[399273537,1766225479651,-303.06612987,0.0003562,30]
[399273538,1766225479661,-303.06612987,0.0003562,30]
[399273539,1766225479670,-303.06612987,0.0003562,30]
[399273540,1766225479679,-303.06612987,0.0003562,30]
[399273541,1766225479689,-158.95521843,0.0003562,30]
[399273542,1766225479698,-158.95521843,0.0003562,30]
[399273543,1766225479707,-158.95521843,0.0003562,30]
[399273544,1766225479716,-158.95521843,0.0003562,30]
[399273545,1766225479725,-158.95521843,0.0003562,30]
[399273546,1766225479735,-158.95521843,0.0003562,30]
[399273547,1766225479744,-158.95521843,0.0003562,30]
[399273548,1766225479753,-158.95,0.0003562,30]
[399273549,1766225479763,-156.16653039,0.0003562,30]
[399273550,1766225479772,-156.16653039,0.0003562,30]
[399273551,1766225479782,-156.16653039,0.0003562,30]
[399273552,1766225479791,-156.16653039,0.0003562,30]
[399273553,1766225479800,-156.16653039,0.0003562,30]
[399273554,1766225479809,-156.16653039,0.0003562,30]
[399273555,1766225479819,-156.16653039,0.0003562,30]
[399273556,1766225479828,-156.16653039,0.0003562,30]
[399273557,1766225479838,-156.16653039,0.0003562,30]
[399273558,1766225479849,-200.0,0.0003563,120]
[399273559,1766225479859,-200.0,0.0003563,120]
[399273560,1766225479868,-200.0,0.0003563,120]
[399273561,1766225479878,-688.15995831,0.00035699,120]
[399273562,1766225479888,-152.32034166,0.0003573,30]
[399273563,1766225479898,-303.06612987,0.0003573,30]
[399273564,1766225479908,-200.20920651,0.00035781,30]
[399273565,1766225479916,-156.16653039,0.00035939,30]
[399273566,1766225479927,-200.20920651,0.00035945,30]
[399273567,1766225479937,-303.06612987,0.00036127,30]
[399273568,1766225479947,-200.20920651,0.00036137,30]
[399273569,1766225479956,-108342.05,0.000362,2]
[399273570,1766225479966,-1858.51,0.000362,14]
[399273571,1766225479975,-326.927746,0.000362,28]
[399273572,1766225479984,-326.927746,0.000362,28]
[399273573,1766225479993,-326.927746,0.000362,28]
[399273574,1766225480002,-326.927746,0.000362,28]
[399273575,1766225480011,-168.146572,0.000362,31]
[399273576,1766225480021,-151.0,0.000362,31]
[399273577,1766225480030,-168.146572,0.000362,31]
[399273578,1766225480042,-208.023304,0.000362,31]
[399273579,1766225480066,-168.146572,0.000362,31]
[399273580,1766225480088,-168.146572,0.000362,31]
[399273581,1766225480111,-159.925597,0.000362,31]
[399273582,1766225480131,-169.221562,0.000362,31]
[399273583,1766225480151,-169.221562,0.000362,31]
[399273584,1766225480170,-169.221562,0.000362,31]
[399273585,1766225480191,-169.221562,0.000362,31]
[399273586,1766225480211,-172.966838,0.000362,31]
[399273587,1766225480231,-172.966838,0.000362,31]
[399273588,1766225480244,-172.966838,0.000362,31]
[399273589,1766225480255,-172.966838,0.000362,31]
[399273590,1766225480266,-739.711789,0.000362,31]
[399273591,1766225480278,-156.93687,0.000362,31]
[399273592,1766225480287,-739.711789,0.000362,31]
[399273593,1766225480296,-156.93687,0.000362,31]
[399273594,1766225480307,-156.93687,0.000362,31]
[399273595,1766225480317,-739.711789,0.000362,31]
[399273596,1766225480326,-151.0,0.000362,31]
[399273597,1766225480335,-156.93687,0.000362,31]
[399273598,1766225480344,-739.711789,0.000362,31]